bitfinex-derivatives/quotes_BNBF0:USTF0_20260221
["timestamp","ask_amount","ask_price","bid_price","bid_amount"]
[1771685583403,0.95251739,633.73,632.96,1.29]
[1771685583607,0.95251739,633.72,632.96,1.29]
[1771685583810,0.95251739,633.71,632.96,1.29]
[1771685584108,0.95251739,633.7,632.96,1.29]
[1771685584307,0.95251739,633.69,632.96,1.29]
[1771685584511,0.95251739,633.68,632.96,1.29]
[1771685584806,0.95251739,633.67,632.96,1.29]
[1771685585007,0.95251739,633.66,632.96,1.29]
[1771685585210,0.95251739,633.65,632.96,1.29]
[1771685585409,0.95251739,633.64,632.96,1.29]
[1771685585711,0.95251739,633.63,632.96,1.29]
[1771685585911,0.95251739,633.62,632.96,1.29]
[1771685586106,0.95251739,633.61,632.96,1.29]
[1771685586409,0.95251739,633.6,632.96,1.29]
[1771685586607,0.95251739,633.59,632.96,1.29]
[1771685586810,0.95251739,633.58,632.96,1.29]
[1771685587010,0.95251739,633.57,632.96,1.29]
[1771685587214,0.95251739,633.56,632.96,1.29]
[1771685587513,1.17795375,633.76,632.96,1.29]
[1771685589314,2.13119668,633.75,632.96,1.29]
[1771685589511,0.95324293,633.74,632.96,1.29]
[1771685589710,0.95324293,633.73,632.96,1.29]
[1771685590012,0.95324293,633.72,632.96,1.29]
[1771685590215,0.95324293,633.71,632.96,1.29]
[1771685590415,0.95324293,633.7,632.96,1.29]
[1771685590611,1.17795375,633.74,632.96,1.29]
[1771685590612,0.95324293,633.69,632.96,1.29]
[1771685590915,0.95324293,633.68,632.96,1.29]
[1771685591112,0.95324293,633.67,632.96,1.29]
[1771685591312,0.95324293,633.66,632.96,1.29]
[1771685591512,0.95324293,633.65,632.96,1.29]
[1771685591717,0.95324293,633.64,632.96,1.29]
[1771685591917,0.95324293,633.63,632.96,1.29]
[1771685592118,0.95324293,633.62,632.96,1.29]
[1771685592311,0.95324293,633.61,632.96,1.29]
[1771685592612,0.95324293,633.6,632.96,1.29]
[1771685592815,0.95324293,633.59,632.96,1.29]
[1771685593016,0.95324293,633.58,632.96,1.29]
[1771685593317,0.95324293,633.57,632.96,1.29]
[1771685593515,0.95324293,633.56,632.96,1.29]
[1771685593713,0.95324293,633.55,632.96,1.29]
[1771685593913,0.95324293,633.54,632.96,1.29]
[1771685594113,0.95324293,633.53,632.96,1.29]
[1771685594314,0.95324293,633.52,632.96,1.29]
[1771685594516,1.17795375,633.74,632.96,1.29]
[1771685594718,0.95485115,633.73,632.96,1.29]
[1771685594915,0.95485115,633.72,632.96,1.29]
[1771685595220,0.95485115,633.71,632.96,1.29]
[1771685595418,0.95485115,633.7,632.96,1.29]
[1771685595617,0.95485115,633.69,632.96,1.29]
[1771685595823,0.95485115,633.68,632.96,1.29]
[1771685596020,0.95485115,633.67,632.96,1.29]
[1771685596217,0.95485115,633.66,632.96,1.29]
[1771685596421,0.95485115,633.65,632.96,1.29]
[1771685596716,0.95485115,633.64,632.96,1.29]
[1771685596918,0.95485115,633.63,632.96,1.29]
[1771685597220,0.95485115,633.62,632.96,1.29]
[1771685597520,0.95485115,633.61,632.96,1.29]
[1771685597716,0.95485115,633.6,632.96,1.29]
[1771685597919,0.95485115,633.59,632.96,1.29]
[1771685598128,0.95485115,633.58,632.96,1.29]
[1771685598327,1.17795375,633.77,632.96,1.29]
[1771685598328,0.95485115,633.57,632.96,1.29]
[1771685598531,1.17795375,633.77,632.96,1.29]
[1771685598728,0.95551033,633.76,632.96,1.29]
[1771685598931,0.95551033,633.75,632.96,1.29]
[1771685599130,0.95551033,633.74,632.96,1.29]
[1771685599434,0.95551033,633.73,632.96,1.29]
[1771685599733,0.95551033,633.72,632.96,1.29]
[1771685599933,0.95551033,633.71,632.96,1.29]
[1771685600133,0.95551033,633.7,632.96,1.29]
[1771685600334,0.95551033,633.69,632.96,1.29]
[1771685600634,0.95551033,633.68,632.96,1.29]
[1771685600929,1.17795375,633.76,632.96,1.29]
[1771685600930,0.95551033,633.67,632.96,1.29]
[1771685601134,0.95551033,633.66,632.96,1.29]
[1771685601335,0.95551033,633.65,632.97,2.32889858]
[1771685601533,0.95551033,633.64,632.97,2.32889858]
[1771685601841,0.95551033,633.63,632.97,2.32889858]
[1771685602029,0.95551033,633.62,632.97,2.32889858]
[1771685602330,0.95551033,633.61,632.97,2.32889858]
[1771685602534,1.17795375,633.81,632.97,2.32889858]
[1771685602733,0.96117169,633.8,632.97,2.32889858]
[1771685602930,0.96117169,633.79,632.97,2.32889858]
[1771685603134,0.96117169,633.78,632.97,2.32889858]
[1771685603335,0.96117169,633.77,632.97,2.32889858]
[1771685603535,0.96117169,633.76,632.97,2.32889858]
[1771685603731,0.96117169,633.75,632.97,2.32889858]
[1771685603929,1.17795375,633.82,632.97,2.32889858]
[1771685603930,0.96117169,633.74,632.97,2.32889858]
[1771685604235,0.96117169,633.73,632.97,2.32889858]
[1771685604434,1.17795375,633.82,632.97,2.32889858]
[1771685604435,0.96117169,633.72,632.97,2.32889858]
[1771685604632,0.96117169,633.71,632.97,2.32889858]
[1771685604834,1.17795375,633.82,632.97,2.32889858]
[1771685604835,0.96117169,633.7,632.97,2.32889858]
[1771685605031,0.96117169,633.69,632.97,2.32889858]
[1771685605235,0.96117169,633.68,632.96,3.61889858]
[1771685605532,0.96117169,633.67,632.96,3.61889858]
[1771685605732,0.96117169,633.66,632.96,3.61889858]
[1771685605933,0.96117169,633.65,632.96,3.61889858]
[1771685606132,0.96117169,633.64,632.96,3.61889858]
[1771685606336,0.96117169,633.63,632.96,3.61889858]
[1771685606533,0.96117169,633.62,632.96,3.61889858]
[1771685606734,1.17795375,633.82,632.96,2.32889858]
[1771685606931,0.96089765,633.81,632.96,2.32889858]
[1771685607133,0.96089765,633.8,632.96,2.32889858]
[1771685607333,0.96089765,633.79,632.96,2.32889858]
[1771685607532,0.96089765,633.78,632.96,2.32889858]
[1771685607735,0.96089765,633.77,632.96,2.32889858]
[1771685607932,0.96089765,633.76,632.96,2.32889858]
[1771685608134,0.96089765,633.75,632.96,2.32889858]
[1771685608334,0.96089765,633.74,632.96,2.32889858]
[1771685608532,0.96089765,633.73,632.96,2.32889858]
[1771685608734,0.96089765,633.72,632.96,2.32889858]
[1771685608936,0.96089765,633.71,632.96,2.32889858]
[1771685609137,0.96089765,633.7,632.96,2.32889858]
[1771685609338,0.96089765,633.69,632.96,2.32889858]
[1771685609536,0.96089765,633.68,632.96,2.32889858]
[1771685609735,0.96089765,633.67,632.96,2.32889858]
[1771685609934,0.96089765,633.66,632.96,2.32889858]
[1771685610135,0.96089765,633.65,632.96,2.32889858]
[1771685610334,0.96089765,633.64,632.96,2.32889858]
[1771685610636,0.96089765,633.63,632.97,1.531]
[1771685610835,1.17795375,633.83,632.97,1.531]
[1771685611034,0.96066744,633.82,632.97,1.531]
[1771685611239,0.96066744,633.81,632.97,1.531]
[1771685611438,0.96066744,633.8,632.97,1.531]
[1771685611638,0.96066744,633.79,632.97,1.531]
[1771685611935,0.96066744,633.78,632.97,1.531]
[1771685612133,0.96066744,633.77,632.97,1.531]
[1771685612337,1.17795375,633.83,632.97,1.531]
[1771685612338,0.96066744,633.76,632.97,1.531]
[1771685612539,0.96066744,633.75,632.97,1.531]
[1771685612733,0.96066744,633.74,632.97,1.531]
[1771685612934,0.96066744,633.73,632.97,1.531]
[1771685613235,0.96066744,633.72,632.97,1.531]
[1771685613437,0.96066744,633.71,632.97,1.531]
[1771685613636,0.96066744,633.7,632.97,1.531]
[1771685613839,0.96066744,633.69,632.97,1.531]
[1771685614134,0.96066744,633.68,632.97,1.531]
[1771685614339,0.96066744,633.67,632.97,1.531]
[1771685614539,0.96066744,633.66,632.97,1.531]
[1771685614740,0.96066744,633.65,632.97,1.531]
[1771685614939,0.96066744,633.64,632.97,1.531]
[1771685615137,1.17795375,633.83,632.97,1.531]
[1771685615138,0.96066744,633.63,632.97,1.531]
[1771685615339,1.17795375,633.83,632.97,1.531]
[1771685615636,0.96041628,633.82,632.97,1.531]
[1771685615841,0.96041628,633.81,632.97,1.531]
[1771685616037,0.96041628,633.8,632.97,1.531]
[1771685616240,0.96041628,633.79,632.97,1.531]
[1771685616438,0.96041628,633.78,632.97,1.531]
[1771685616638,0.96041628,633.77,632.97,1.531]
[1771685616841,0.96041628,633.76,632.97,1.531]
[1771685617037,0.96041628,633.75,632.97,1.531]
[1771685617238,0.96041628,633.74,632.97,1.531]
[1771685617438,0.96041628,633.73,632.97,1.531]
[1771685617736,0.96041628,633.72,632.97,1.531]
[1771685617940,0.96041628,633.71,632.97,1.531]
[1771685618142,0.96041628,633.7,632.97,1.531]
[1771685618337,0.96041628,633.69,632.97,1.531]
[1771685618538,0.96041628,633.68,632.97,1.531]
[1771685618738,0.96041628,633.67,632.97,1.531]
[1771685618942,0.96041628,633.66,632.97,1.531]
[1771685619138,0.96041628,633.65,632.97,1.531]
[1771685619342,0.96041628,633.64,632.97,1.531]
[1771685619540,0.96041628,633.63,632.97,1.531]
[1771685619840,0.96041628,633.62,632.97,1.531]
[1771685620039,1.17795375,633.82,632.97,1.531]
[1771685620345,0.96037873,633.81,632.97,1.531]
[1771685620542,1.56703194,633.94,632.97,1.531]
[1771685620543,2.13833248,633.8,632.97,1.531]
[1771685620744,1.17795375,633.77,632.97,1.531]
[1771685621040,0.96037873,633.76,632.97,1.531]
[1771685621244,0.96037873,633.75,632.97,1.531]
[1771685621540,0.96037873,633.74,632.97,1.531]
[1771685621738,0.96037873,633.73,632.97,1.531]
[1771685621943,0.96037873,633.72,632.97,1.531]
[1771685622243,0.96037873,633.71,632.97,1.531]
[1771685622439,0.96037873,633.7,632.97,1.531]
[1771685622645,0.96037873,633.69,632.97,1.531]
[1771685622942,0.96037873,633.68,632.97,1.531]
[1771685623147,0.96037873,633.67,632.97,1.531]
[1771685623346,0.96037873,633.66,632.97,1.531]
[1771685623546,0.96037873,633.65,632.95,0.27462446]
[1771685623746,0.96037873,633.64,632.95,0.27462446]
[1771685623943,0.96037873,633.63,632.95,0.27462446]
[1771685624144,0.96037873,633.62,632.95,0.27462446]
[1771685624346,0.96037873,633.61,632.95,0.27462446]
[1771685624549,0.96037873,633.6,632.95,0.27462446]
[1771685624748,0.96037873,633.59,632.95,0.27462446]
[1771685624952,0.96037873,633.58,632.95,0.27462446]
[1771685625148,0.96037873,633.57,632.95,0.27462446]
[1771685625352,0.96037873,633.56,632.95,0.27462446]
[1771685625548,0.96037873,633.55,632.95,0.27462446]
[1771685625752,0.96037873,633.54,632.95,0.27462446]
[1771685625953,0.96037873,633.53,632.95,0.27462446]
[1771685626152,0.96037873,633.52,632.95,0.27462446]
[1771685626351,0.96037873,633.51,632.96,1.591]
[1771685626549,0.96037873,633.5,632.96,1.591]
[1771685626750,0.96037873,633.49,632.96,1.591]
[1771685626953,1.17795375,633.69,632.96,1.591]
[1771685627150,0.96058927,633.68,632.96,1.591]
[1771685627353,0.96058927,633.67,632.96,1.591]
[1771685627653,0.96058927,633.66,632.96,1.591]
[1771685627851,0.96058927,633.65,632.96,1.591]
[1771685628050,0.96058927,633.64,632.96,1.591]
[1771685628356,0.96058927,633.63,632.96,1.591]
[1771685628650,0.96058927,633.62,632.96,1.591]
[1771685628854,0.96058927,633.61,632.96,1.591]
[1771685629150,0.96058927,633.6,632.96,1.591]
[1771685629354,0.96058927,633.59,632.96,1.591]
[1771685629550,0.96058927,633.58,632.96,1.591]
[1771685629754,0.96058927,633.57,632.96,1.591]
[1771685629951,0.96058927,633.56,632.96,1.591]
[1771685630154,0.96058927,633.55,632.96,1.591]
[1771685630351,0.96058927,633.54,632.96,1.591]
[1771685630549,0.96058927,633.53,632.96,1.591]
[1771685630752,0.96058927,633.52,632.96,1.591]
[1771685630951,0.96058927,633.51,632.96,1.591]
[1771685631156,0.96058927,633.5,632.96,1.591]
[1771685631356,0.96058927,633.49,632.96,1.591]
[1771685631554,0.96058927,633.48,632.96,1.591]
[1771685631857,1.56703194,633.8,632.96,1.591]
[1771685631858,1.17795375,633.69,632.96,1.591]
[1771685632157,0.95770035,633.68,632.96,1.591]
[1771685632458,0.95770035,633.67,632.96,1.591]
[1771685632757,0.95770035,633.66,632.96,1.591]
[1771685632958,0.95770035,633.65,632.96,1.591]
[1771685633155,1.56703194,633.8,632.96,1.591]
[1771685633156,0.95770035,633.64,632.96,1.591]
[1771685633356,0.95770035,633.63,632.96,1.591]
[1771685633659,0.95770035,633.62,632.96,1.591]
[1771685633859,0.95770035,633.61,632.96,1.591]
[1771685634060,0.95770035,633.6,632.96,1.591]
[1771685634258,0.95770035,633.59,632.96,1.591]
[1771685634557,0.95770035,633.58,632.96,1.591]
[1771685634755,0.95770035,633.57,632.96,1.591]
[1771685635156,0.95770035,633.56,632.96,1.591]
[1771685635456,0.95770035,633.55,632.96,1.591]
[1771685635656,0.95770035,633.54,632.96,1.591]
[1771685635956,0.95770035,633.53,632.96,1.591]
[1771685636156,0.95770035,633.52,632.96,1.591]
[1771685636458,0.95770035,633.51,632.96,1.591]
[1771685636760,0.95770035,633.5,632.96,1.591]
[1771685636961,0.95770035,633.49,632.96,1.591]
[1771685637162,0.95770035,633.48,632.96,1.591]
[1771685637358,1.17795375,633.68,632.96,1.591]
[1771685637563,0.9573562,633.67,632.96,1.591]
[1771685637761,0.9573562,633.66,632.96,1.591]
[1771685637959,0.9573562,633.65,632.96,1.591]
[1771685638161,0.9573562,633.64,632.96,1.591]
[1771685638360,0.9573562,633.63,632.96,1.591]
[1771685638660,0.9573562,633.62,632.96,1.591]
[1771685638864,0.9573562,633.61,632.96,1.591]
[1771685639064,0.9573562,633.6,632.96,1.591]
[1771685639265,0.9573562,633.59,632.96,1.591]
[1771685639461,0.9573562,633.58,632.96,1.591]
[1771685639662,0.9573562,633.57,632.96,1.591]
[1771685639865,0.9573562,633.56,632.96,1.591]
[1771685640061,0.9573562,633.55,632.96,1.591]
[1771685640360,0.9573562,633.54,632.96,1.591]
[1771685640564,0.9573562,633.53,632.96,1.591]
[1771685640763,0.9573562,633.52,632.96,1.591]
[1771685640962,0.9573562,633.51,632.96,1.591]
[1771685641165,0.9573562,633.5,632.96,1.591]
[1771685641461,0.9573562,633.49,632.96,1.591]
[1771685641767,0.9573562,633.48,632.96,1.591]
[1771685642062,1.1807326,633.69,632.96,1.591]
[1771685642365,0.95710513,633.68,632.96,1.591]
[1771685642566,0.95710513,633.67,632.96,1.591]
[1771685642765,0.95710513,633.66,632.96,1.591]
[1771685643062,0.95710513,633.65,632.96,1.591]
[1771685643365,0.95710513,633.64,632.96,1.591]
[1771685643565,0.95710513,633.63,632.96,1.591]
[1771685643765,1.1807326,633.47,632.96,1.591]
[1771685643965,1.1807326,633.45,632.96,1.591]
[1771685644160,0.95710513,633.44,632.96,1.591]
[1771685644559,0.95710513,633.43,632.96,1.591]
[1771685644762,0.95710513,633.42,632.96,1.591]
[1771685644962,0.95710513,633.41,632.96,1.591]
[1771685645261,0.95710513,633.4,632.96,1.591]
[1771685645464,1.1807326,633.46,632.96,1.591]
[1771685645465,0.95710513,633.39,632.96,1.591]
[1771685645764,0.95710513,633.38,632.96,1.591]
[1771685645963,0.95710513,633.37,632.96,1.591]
[1771685646164,0.95710513,633.36,632.96,1.591]
[1771685646362,0.95710513,633.35,632.96,1.591]
[1771685646566,0.95710513,633.34,632.96,1.591]
[1771685646763,0.95710513,633.33,632.96,1.591]
[1771685646963,0.95710513,633.32,632.96,1.591]
[1771685647161,0.95710513,633.31,632.96,1.591]
[1771685647361,0.95710513,633.3,632.96,1.591]
[1771685647665,0.95710513,633.29,632.96,1.591]
[1771685647864,0.95710513,633.28,632.96,1.591]
[1771685648065,0.95710513,633.27,632.96,1.591]
[1771685648367,0.95710513,633.26,632.96,1.591]
[1771685648561,0.95710513,633.25,632.96,1.591]
[1771685648765,0.95710513,633.24,632.96,1.591]
[1771685648966,1.1807326,633.44,632.96,1.591]
[1771685649262,0.9540869,633.43,632.96,1.591]
[1771685649464,0.9540869,633.42,632.96,1.591]
[1771685649665,0.9540869,633.41,632.96,1.591]
[1771685649866,1.1807326,633.45,632.96,1.591]
[1771685649867,0.9540869,633.4,632.96,1.591]
[1771685650063,0.9540869,633.39,632.96,1.591]
[1771685650267,0.9540869,633.38,632.96,1.591]
[1771685650562,0.9540869,633.37,632.96,1.591]
[1771685650867,0.9540869,633.36,632.96,1.591]
[1771685651162,0.9540869,633.35,632.96,1.591]
[1771685651366,0.9540869,633.34,632.96,1.591]
[1771685651666,0.9540869,633.33,632.96,1.591]
[1771685651966,0.9540869,633.32,632.96,1.591]
[1771685652167,0.9540869,633.31,632.96,1.591]
[1771685652362,0.9540869,633.3,632.96,1.591]
[1771685652562,0.9540869,633.29,632.96,1.591]
[1771685652764,0.9540869,633.28,632.96,1.591]
[1771685652963,0.9540869,633.27,632.96,1.591]
[1771685653163,0.9540869,633.26,632.96,1.591]
[1771685653368,0.9540869,633.25,632.96,1.591]
[1771685653666,0.9540869,633.24,632.96,1.591]
[1771685653865,0.9540869,633.23,632.96,1.591]
[1771685654065,0.9540869,633.22,632.96,1.591]
[1771685654266,0.9540869,633.21,632.96,1.591]
[1771685654468,0.9540869,633.2,632.96,1.591]
[1771685654663,1.1807326,633.4,632.96,1.591]
[1771685654866,0.95180522,633.39,632.96,1.591]
[1771685655069,0.95180522,633.38,632.96,1.591]
[1771685655270,0.95180522,633.37,632.96,1.591]
[1771685655466,0.95180522,633.36,632.96,1.591]
[1771685655670,0.95180522,633.35,632.96,1.591]
[1771685655870,0.95180522,633.34,632.96,1.591]
[1771685656067,0.95180522,633.33,632.96,1.591]
[1771685656272,0.95180522,633.32,632.96,1.591]
[1771685656468,0.95180522,633.31,632.96,1.591]
[1771685656667,0.95180522,633.3,632.96,1.591]
[1771685656968,0.95180522,633.29,632.96,1.591]
[1771685657171,0.95180522,633.28,632.96,1.591]
[1771685657371,0.95180522,633.27,632.96,1.591]
[1771685657667,0.95180522,633.26,632.96,1.591]
[1771685657867,0.95180522,633.25,632.96,1.591]
[1771685658071,0.95180522,633.24,632.96,1.591]
[1771685658268,3.9126045,634.05,632.96,1.591]
[1771685658269,0.95180522,633.23,632.96,1.591]
[1771685658470,0.95180522,633.22,632.96,1.591]
[1771685658670,0.95071411,633.21,632.96,1.591]
[1771685658867,1.1725263,633.36,632.96,1.591]
[1771685658868,0.95071411,633.2,632.96,1.591]
[1771685659072,0.95071411,633.19,632.96,1.591]
[1771685659272,0.95071411,633.18,632.96,1.591]
[1771685659469,0.95071411,633.17,632.96,1.591]
[1771685659674,0.95071411,633.16,632.96,1.591]
[1771685659974,1.1725263,633.37,632.96,1.591]
[1771685660175,2.12307925,633.36,632.96,1.591]
[1771685660474,0.95055295,633.35,632.74,0.27484895]
[1771685660673,0.95055295,633.34,632.74,0.27484895]
[1771685660975,0.95055295,633.33,632.74,0.27484895]
[1771685661170,0.95055295,633.32,632.74,0.27484895]
[1771685661371,0.95055295,633.31,632.74,0.27484895]
[1771685661574,0.95055295,633.3,632.74,0.27484895]
[1771685661777,0.95055295,633.29,632.74,0.27484895]
[1771685661974,0.95055295,633.28,632.74,0.27484895]
[1771685662174,0.95055295,633.27,632.74,0.27484895]
[1771685662378,0.95055295,633.26,632.74,0.27484895]
[1771685662577,0.95055295,633.25,632.74,0.27484895]
[1771685662774,0.95055295,633.24,632.74,0.27484895]
[1771685662976,0.95055295,633.23,632.74,0.27484895]
[1771685663177,0.95055295,633.22,632.74,0.27484895]
[1771685663378,0.95055295,633.21,632.74,0.27484895]
[1771685663579,0.95055295,633.2,632.74,0.27484895]
[1771685663779,0.95055295,633.19,632.74,0.27484895]
[1771685663981,0.95055295,633.18,632.74,0.27484895]
[1771685664181,0.95055295,633.17,632.75,1.514]
[1771685664381,0.95055295,633.16,632.75,1.514]
[1771685664580,1.1725263,633.36,632.75,1.514]
[1771685664776,2.12795393,633.35,632.75,1.514]
[1771685665078,0.95542763,633.34,632.75,1.514]
[1771685665277,0.95542763,633.33,632.75,1.514]
[1771685665480,0.95542763,633.32,632.75,1.514]
[1771685665780,0.95542763,633.31,632.75,1.514]
[1771685665977,0.95542763,633.3,632.75,1.514]
[1771685666182,0.95542763,633.29,632.75,1.514]
[1771685666381,0.95542763,633.28,632.75,1.514]
[1771685666581,0.95542763,633.27,632.75,1.514]
[1771685666788,0.95542763,633.26,632.75,1.514]
[1771685666979,0.95542763,633.25,632.75,1.514]
[1771685667286,0.95542763,633.24,632.75,1.514]
[1771685667481,0.95542763,633.23,632.75,1.514]
[1771685667784,0.95542763,633.22,632.75,1.514]
[1771685668081,0.95542763,633.21,632.75,1.514]
[1771685668284,0.95542763,633.2,632.75,1.514]
[1771685668579,1.1725263,633.37,632.75,1.514]
[1771685668580,0.95542763,633.19,632.75,1.514]
[1771685668785,0.95542763,633.18,632.75,1.514]
[1771685668984,0.95542763,633.17,632.75,1.514]
[1771685669181,0.95568864,633.16,632.75,1.514]
[1771685669390,1.1725263,633.37,632.75,1.514]
[1771685669686,0.95568831,633.36,632.75,1.514]
[1771685669985,0.95568831,633.35,632.75,1.514]
[1771685670181,0.95568831,633.34,632.75,1.514]
[1771685670382,0.95568831,633.33,632.75,1.514]
[1771685670585,0.95568831,633.32,632.75,1.514]
[1771685670783,0.95568831,633.31,632.75,1.514]
[1771685671085,0.95568831,633.3,632.75,1.514]
[1771685671283,0.95568831,633.29,632.75,1.514]
[1771685671486,0.95568831,633.28,632.75,1.514]
[1771685671782,0.95568831,633.27,632.75,1.514]
[1771685671982,0.95568831,633.26,632.75,1.514]
[1771685672281,0.95568831,633.25,632.75,1.514]
[1771685672486,0.95568831,633.24,632.75,1.514]
[1771685672684,0.95568831,633.23,632.75,1.514]
[1771685672888,0.95568831,633.22,632.75,1.514]
[1771685673087,0.95568831,633.21,632.75,1.514]
[1771685673285,0.95568831,633.2,632.75,1.514]
[1771685673484,0.95568831,633.19,632.75,1.514]
[1771685673689,0.95568831,633.18,632.75,1.514]
[1771685673990,0.95568831,633.17,632.75,1.514]
[1771685674186,0.95568831,633.16,632.75,1.514]
[1771685674385,0.95568831,633.15,632.75,1.514]
[1771685674686,1.1725263,633.35,632.75,1.514]
[1771685675789,0.95627612,633.34,632.75,1.514]
[1771685675990,0.95627612,633.33,632.75,1.514]
[1771685676190,0.95627612,633.32,632.75,1.514]
[1771685676389,0.95627612,633.31,632.75,1.514]
[1771685676588,0.95627612,633.3,632.75,1.514]
[1771685676798,0.95627612,633.29,632.75,1.514]
[1771685676991,0.95627612,633.28,632.75,1.514]
[1771685677289,1.1725263,633.22,632.75,1.514]
[1771685678292,2.12880242,633.21,632.75,1.514]
[1771685678494,0.95627612,633.2,632.75,1.514]
[1771685678793,0.95627612,633.19,632.75,1.514]
[1771685678989,0.95627612,633.18,632.75,1.514]
[1771685679193,0.95627612,633.17,632.75,1.514]
[1771685679492,0.95627612,633.16,632.75,1.514]
[1771685679790,0.95627612,633.15,632.75,1.514]
[1771685680093,0.95627612,633.14,632.75,1.514]
[1771685680290,0.95627612,633.13,632.75,1.514]
[1771685680494,0.95627612,633.12,632.75,1.514]
[1771685680791,0.95627612,633.11,632.75,1.514]
[1771685680990,0.95627612,633.1,632.75,1.514]
[1771685681194,0.95627612,633.09,632.75,1.514]
[1771685681395,0.95627612,633.08,632.75,1.514]
[1771685681596,0.95627612,633.07,632.75,1.514]
[1771685681805,0.95627612,633.06,632.75,1.514]
[1771685682095,0.95627612,633.05,632.75,1.514]
[1771685682293,0.95627612,633.04,632.75,1.514]
[1771685682497,1.1725263,633.04,632.75,1.514]
[1771685683292,2.12880242,633.03,632.75,1.514]
[1771685683593,0.95627612,633.02,632.75,1.514]
[1771685683796,0.95627612,633.01,632.75,1.514]
[1771685684093,0.95627612,633.0,632.75,1.514]
[1771685684298,0.95627612,632.99,632.75,1.514]
[1771685684495,0.95627612,632.98,632.75,1.514]
[1771685684793,0.95627612,632.97,632.75,1.514]
[1771685684998,0.95627612,632.96,632.75,1.514]
[1771685685295,0.95627612,632.95,632.75,1.514]
[1771685685597,2.3538975,633.25,632.75,1.514]
[1771685685598,0.95627612,632.94,632.75,1.514]
[1771685685798,0.95627612,632.93,632.75,1.514]
[1771685685998,0.95627612,632.92,632.75,1.514]
[1771685686199,0.95627612,632.91,632.75,1.514]
[1771685686400,0.95627612,632.9,632.75,1.514]
[1771685686695,0.95627612,632.89,632.75,1.514]
[1771685686900,0.95627612,632.88,632.75,1.514]
[1771685687200,0.95627612,632.87,632.75,1.514]
[1771685687400,0.95627612,632.86,632.75,1.514]
[1771685687595,0.95627612,632.85,632.75,1.514]
[1771685687898,0.95627612,632.84,632.75,1.514]
[1771685688098,0.95627612,632.83,632.75,1.514]
[1771685688400,0.95627612,632.82,632.75,1.514]
[1771685688599,0.95627612,632.81,632.75,1.514]
[1771685688899,0.95627612,632.8,632.75,1.514]
[1771685689096,0.95627612,632.79,632.75,1.514]
[1771685689399,0.95627612,632.78,632.75,1.514]
[1771685689599,0.95627612,632.77,632.75,1.514]
[1771685689800,1.1725263,632.98,632.75,1.514]
[1771685690299,0.95909789,632.97,632.75,1.514]
[1771685690496,0.95909789,632.96,632.75,1.514]
[1771685690694,0.95909789,632.95,632.75,1.514]
[1771685690896,0.95909789,632.94,632.75,1.514]
[1771685691198,0.95909789,632.93,632.75,1.514]
[1771685691397,0.95909789,632.92,632.75,1.514]
[1771685691596,0.95909789,632.91,632.75,1.514]
[1771685691799,0.95909789,632.9,632.75,1.514]
[1771685691997,0.95909789,632.89,632.75,1.514]
[1771685692197,0.95909789,632.88,632.75,1.514]
[1771685692396,0.95909789,632.87,632.75,1.514]
[1771685692700,0.95909789,632.86,632.75,1.514]
[1771685692901,0.95909789,632.85,632.75,1.514]
[1771685693096,0.95909789,632.84,632.75,1.514]
[1771685693396,0.95909789,632.83,632.75,1.514]
[1771685693601,1.1725263,633.03,632.75,1.514]
[1771685696403,2.13306693,633.03,632.75,1.514]
[1771685696699,0.96054063,633.02,632.75,1.514]
[1771685696902,0.96054063,633.01,632.75,1.514]
[1771685697101,0.96054063,633.0,632.75,1.514]
[1771685697300,0.96054063,632.99,632.75,1.514]
[1771685697503,0.96054063,632.98,632.75,1.514]
[1771685697703,0.96054063,632.97,632.75,1.514]